fUST/lending_fUST_20250130
["ID","MTS","AMOUNT","RATE_DAILY","PERIOD"]
[350925557,1738204709060,377.35563207,0.0002045,120]
[350925558,1738204726919,500.0,0.0002045,120]
[350925560,1738204974749,166.092601,0.00013973,2]
[350925647,1738205432127,-998.63294556,0.0001523,2]
[350925653,1738205432180,-2563.44563394,0.0001523,2]
[350925655,1738205432190,-350.01332928,0.00015368,2]
[350925657,1738205432200,-159.318438,0.00015468,5]
[350925658,1738205432209,-159.318438,0.00015771,5]
[350925660,1738205432219,-159.318438,0.0001595,2]
[350925662,1738205432228,-159.318438,0.0001598,6]
[350925664,1738205432237,-1595.02668151,0.00016066,6]
[350925666,1738205432247,-159.318438,0.00016074,5]
[350925667,1738205432256,-159.318438,0.00016097,2]
[350925669,1738205432266,-159.318438,0.00016244,2]
[350925671,1738205432276,-159.318438,0.0001632,6]
[350925673,1738205432286,-163.40667111,0.00016338,2]
[350925675,1738205432296,-159.318438,0.00016378,5]
[350925677,1738205432305,-20001.5079527,0.000164,2]
[350925678,1738205432314,-503.59834773,0.00016437,2]
[350925680,1738205432323,-500.0,0.00016437,2]
[350925683,1738205432344,-167.70457919,0.00016437,2]
[350925685,1738205432354,-511.20491853,0.00016437,2]
[350925687,1738205432364,-505.86137405,0.00016437,2]
[350925689,1738205432374,-500.0,0.00016437,2]
[350925690,1738205432383,-500.0,0.00016437,2]
[350925692,1738205432394,-185.04412082,0.00016437,2]
[350925694,1738205432405,-500.0,0.00016437,2]
[350925696,1738205432415,-298.50511151,0.00016437,2]
[350925698,1738205432425,-213.12126649,0.00016437,2]
[350925701,1738205432434,-419.15157999,0.00016437,2]
[350925704,1738205432444,-500.36975769,0.00016438,2]
[350925707,1738205432454,-153.330245,0.00016438,2]
[350925710,1738205432465,-511.2749576,0.00016438,2]
[350925713,1738205432475,-520.59140733,0.00016438,2]
[350925716,1738205432489,-105.81889755,0.00016438,2]
[350925738,1738205437873,-403.4790779,0.00016438,2]
[350925740,1738205437883,-509.59455574,0.00016438,2]
[350925742,1738205437893,-515.21488785,0.00016438,2]
[350925744,1738205437903,-513.60523085,0.00016438,2]
[350925746,1738205437912,-513.78112103,0.00016438,2]
[350925748,1738205437922,-508.97992118,0.00016438,2]
[350925750,1738205437933,-516.17430507,0.00016438,2]
[350925751,1738205437942,-183.80605015,0.00016438,2]
[350925753,1738205437952,-509.57156321,0.00016438,2]
[350925755,1738205437962,-506.32161024,0.00016438,2]
[350925757,1738205437972,-513.59765971,0.00016438,2]
[350925759,1738205437981,-504.41242216,0.00016438,2]
[350925761,1738205437990,-501.42453877,0.00016438,2]
[350925762,1738205437999,-501.63441561,0.00016438,2]
[350925764,1738205438008,-170.654221,0.00016438,2]
[350925766,1738205438018,-502.33475968,0.00016438,2]
[350925768,1738205438028,-506.49205858,0.00016438,2]
[350925770,1738205438037,-508.211795,0.00016438,2]
[350925772,1738205438046,-279.94606837,0.00016438,2]
[350925775,1738205438067,-223.05519194,0.00016438,2]
[350925777,1738205438076,-502.13764758,0.00016438,2]
[350925778,1738205438085,-500.0,0.00016438,2]
[350925780,1738205438094,-502.28939017,0.00016438,2]
[350925782,1738205438103,-509.93275848,0.00016438,2]
[350925784,1738205438114,-500.0,0.00016438,2]
[350925786,1738205438129,-501.73215108,0.00016438,2]
[350925788,1738205438139,-502.90875539,0.00016438,2]
[350925790,1738205438149,-504.10808778,0.00016438,2]
[350925792,1738205438158,-191.77361893,0.00016438,2]
[350925794,1738205438175,-311.79057945,0.00016438,2]
[350925796,1738205438184,-501.25799232,0.00016438,2]
[350925798,1738205438193,-540.64557338,0.00016438,2]
[350925800,1738205438202,-500.97325082,0.00016438,2]
[350925801,1738205438212,-501.86069751,0.00016438,2]
[350925803,1738205438221,-483.66671867,0.00016438,2]
[350925805,1738205438230,-502.2805315,0.00016438,2]
[350925807,1738205438240,-506.72702175,0.00016438,2]
[350925809,1738205438249,-501.00221667,0.00016438,2]
[350925811,1738205438258,-509.88235533,0.00016438,2]
[350925813,1738205438268,-504.24523923,0.00016438,2]
[350925815,1738205438277,-509.13311743,0.00016438,2]
[350925817,1738205438287,-501.38392102,0.00016438,2]
[350925818,1738205438296,-503.27849988,0.00016438,2]
[350925820,1738205438305,-504.93056133,0.00016438,2]
[350925822,1738205438314,-514.97301848,0.00016438,2]
[350925824,1738205438324,-507.31358379,0.00016438,2]
[350925826,1738205438333,-528.97350636,0.00016438,2]
[350925828,1738205438342,-358.24549983,0.00016438,2]
[350925830,1738205438351,-502.02730585,0.00016438,2]
[350925832,1738205438361,-571.62112503,0.00016438,2]
[350925834,1738205438370,-512.1543316,0.00016438,2]
[350925836,1738205438380,-508.61232813,0.00016438,2]
[350925837,1738205438389,-285.47939284,0.00016438,2]
[350925839,1738205438398,-513.62770633,0.00016438,2]
[350925841,1738205438407,-505.00405041,0.00016438,2]
[350925843,1738205438416,-510.09749904,0.00016438,2]
[350925845,1738205438426,-509.11764593,0.00016438,2]
[350925846,1738205438435,-404.76250189,0.00016438,2]
[350925848,1738205438444,-507.70437916,0.00016438,2]
[350925850,1738205438454,-509.46702164,0.00016438,2]
[350925852,1738205438463,-505.80730842,0.00016438,2]
[350925854,1738205438472,-506.30476958,0.00016438,2]
[350925856,1738205438482,-514.74751626,0.00016438,2]
[350925858,1738205438493,-507.10916039,0.00016438,2]
[350925860,1738205438502,-500.0,0.00016438,2]
[350925862,1738205438512,-491.2197434,0.00016438,2]
[350925864,1738205438521,-500.0,0.00016438,2]
[350925866,1738205438531,-558.5322175,0.00016438,2]
[350925868,1738205438540,-503.34785775,0.00016438,2]
[350925870,1738205438549,-521.56707262,0.00016438,2]
[350925872,1738205438558,-507.55334145,0.00016438,2]
[350925873,1738205438568,-504.76636186,0.00016438,2]
[350925875,1738205438577,-518.74125585,0.00016438,2]
[350925877,1738205438587,-509.06289712,0.00016438,2]
[350925879,1738205438596,-503.62967594,0.00016438,2]
[350925881,1738205438605,-510.04388945,0.00016438,2]
[350925883,1738205438614,-502.65703524,0.00016438,2]
[350925885,1738205438623,-512.69292903,0.00016438,2]
[350925886,1738205438632,-520.70962939,0.00016438,2]
[350925888,1738205438641,-522.09023296,0.00016438,2]
[350925890,1738205438651,-511.61762681,0.00016438,2]
[350925892,1738205438660,-500.0,0.00016438,2]
[350925894,1738205438669,-500.0,0.00016438,2]
[350925896,1738205438678,-515.43467469,0.00016438,2]
[350925898,1738205438688,-510.27759358,0.00016438,2]
[350925900,1738205438698,-503.73396294,0.00016438,2]
[350925901,1738205438704,-512.42545192,0.00016438,2]
[350925903,1738205438712,-502.67936778,0.00016438,2]
[350925905,1738205438719,-153.533275,0.00016438,2]
[350925907,1738205438727,-509.29465721,0.00016438,2]
[350925909,1738205438735,-509.43700515,0.00016438,2]
[350925911,1738205438744,-502.38514293,0.00016438,2]
[350925913,1738205438753,-508.55370256,0.00016438,2]
[350925915,1738205438760,-518.49096412,0.00016438,2]
[350925917,1738205438768,-500.0,0.00016438,2]
[350925919,1738205438778,-510.34678381,0.00016438,2]
[350925921,1738205438785,-518.09606933,0.00016438,2]
[350925923,1738205438792,-512.38057389,0.00016438,2]
[350925925,1738205438800,-516.35450279,0.00016438,2]
[350925926,1738205438807,-574.98175799,0.00016438,2]
[350925928,1738205438814,-727.42,0.00016438,2]
[350925930,1738205438820,-509.7465816,0.00016438,2]
[350925932,1738205438828,-570.44548538,0.00016438,2]
[350925933,1738205438837,-500.0,0.00016438,2]
[350925935,1738205438846,-610.14,0.00016438,2]
[350925937,1738205438854,-501.02665313,0.00016438,2]
[350925939,1738205438861,-500.0,0.00016438,2]
[350925941,1738205438870,-514.13369655,0.00016438,2]
[350925943,1738205438877,-503.37635522,0.00016438,2]
[350925944,1738205438883,-500.0,0.00016438,2]
[350925946,1738205438893,-153.352727,0.00016438,2]
[350925948,1738205438901,-514.68015274,0.00016438,2]
[350925950,1738205438908,-513.6707461,0.00016438,2]
[350925952,1738205438917,-500.0,0.00016438,2]
[350925954,1738205438925,-515.83274063,0.00016438,2]
[350925956,1738205438933,-515.12486354,0.00016438,2]
[350925957,1738205438940,-515.67013667,0.00016438,2]
[350925959,1738205438947,-500.0,0.00016438,2]
[350925961,1738205438955,-504.3614443,0.00016438,2]
[350925963,1738205438963,-234.163575,0.00016438,2]
[350925965,1738205438973,-509.15957615,0.00016438,2]
[350925967,1738205438982,-500.0,0.00016438,2]
[350925969,1738205438991,-506.41992121,0.00016438,2]
[350925971,1738205439000,-500.0,0.00016438,2]
[350925972,1738205439009,-514.04122799,0.00016438,2]
[350925974,1738205439020,-518.53123065,0.00016438,2]
[350925976,1738205439029,-500.0,0.00016438,2]
[350925978,1738205439039,-557.19360681,0.00016438,2]
[350925980,1738205439049,-562.82,0.00016438,2]
[350925982,1738205439058,-508.38750082,0.00016438,2]
[350925984,1738205439067,-516.32105053,0.00016438,2]
[350925986,1738205439076,-509.46770653,0.00016438,2]
[350925988,1738205439086,-504.00241766,0.00016438,2]
[350925989,1738205439095,-156.78865,0.00016438,2]
[350925991,1738205439104,-505.41793361,0.00016438,2]
[350925993,1738205439115,-151.0,0.00016438,2]
[350925995,1738205439127,-151.0,0.00016438,2]
[350925997,1738205439136,-154.589223,0.00016438,2]
[350925999,1738205439146,-500.0,0.00016438,2]
[350926001,1738205439154,-505.64587961,0.00016438,2]
[350926003,1738205439165,-510.62464158,0.00016438,2]
[350926005,1738205439174,-502.10944822,0.00016438,2]
[350926006,1738205439184,-505.38182852,0.00016438,2]
[350926008,1738205439194,-367.45811282,0.00016438,2]
[350926009,1738205439204,-503.08806633,0.00016438,2]
[350926010,1738205439213,-500.0,0.00016438,2]
[350926011,1738205439223,-505.99422414,0.00016438,2]
[350926012,1738205439232,-474.93320532,0.00016438,2]
[350926013,1738205439242,-260.57860454,0.00016438,2]
[350926014,1738205439257,-246.99431229,0.00016438,2]
[350926015,1738205439269,-1055.2,0.00016438,2]
[350926016,1738205439278,-410.836873,0.00016438,2]
[350926017,1738205439287,-431.09052371,0.00016438,2]
[350926020,1738205439299,-144.43947629,0.00016438,2]
[350926022,1738205439308,-500.0,0.00016438,2]
[350926024,1738205439317,-500.0,0.00016438,2]
[350926025,1738205439327,-500.0,0.00016438,2]
[350926026,1738205439336,-500.0,0.00016438,2]
[350926027,1738205439345,-6965.51,0.00016438,2]
[350926028,1738205439354,-151.0,0.00016438,2]
[350926029,1738205439364,-160.462137,0.00016438,2]
[350926030,1738205439373,-500.0,0.00016438,2]
[350926032,1738205439382,-293.089508,0.00016438,2]
[350926034,1738205439392,-1280.68,0.00016438,2]
[350926036,1738205439401,-2146.79,0.00016438,2]
[350926038,1738205439411,-460.76731767,0.00016438,2]
[350926064,1738205439601,-500.0,0.00016438,2]
[350926067,1738205439611,-512.15686243,0.00016438,2]
[350926070,1738205439621,-1868.77,0.00016438,2]
[350926073,1738205439631,-561.25,0.00016438,2]
[350926075,1738205439641,-151.0,0.00016438,2]
[350926077,1738205439650,-832.17,0.00016438,2]
[350926079,1738205439659,-151.0,0.00016438,2]
[350926081,1738205439669,-156.420048,0.00016438,2]
[350926083,1738205439679,-525.33957577,0.00016438,2]
[350926085,1738205439688,-5817.17526185,0.00016438,2]
[350926087,1738205439700,-751.89684868,0.00016438,2]
[350926090,1738205439716,-517.5299952,0.00016438,2]
[350926130,1738205440076,-1354.99694571,0.00016438,2]
[350926133,1738205440087,-1051.38116677,0.00016438,2]
[350926138,1738205440129,-2020.65807544,0.00016438,2]
[350926140,1738205440143,-398.076,0.00016438,2]
[350926142,1738205440154,-1296.2266425,0.00016438,2]
[350926144,1738205440166,-834.67211522,0.00016438,2]
[350926147,1738205440178,-1133.85484393,0.00016438,2]
[350926149,1738205440189,-334.98124228,0.00016438,2]
[350926151,1738205440201,-1375.39706211,0.00016438,2]
[350926167,1738205442960,-604.0,0.00016438,2]
[350926185,1738205446019,-1194.81380031,0.00016438,2]
[350926186,1738205446029,-157.313,0.00016438,2]
[350926187,1738205446038,-532.89,0.00016438,2]
[350926188,1738205446049,-601.84,0.00016438,2]
[350926189,1738205446058,-509.71403678,0.00016438,2]
[350926190,1738205446068,-151.0,0.00016438,2]
[350926191,1738205446077,-151.0,0.00016438,2]
[350926192,1738205446088,-1114.04,0.00016438,2]
[350926193,1738205446098,-151.0,0.00016438,2]
[350926194,1738205446107,-151.0,0.00016438,2]
[350926195,1738205446120,-151.0,0.00016438,2]
[350926196,1738205446130,-162.409546,0.00016438,2]
[350926197,1738205446139,-500.0,0.00016438,2]
[350926198,1738205446149,-151.0,0.00016438,2]
[350926199,1738205446158,-155.754257,0.00016438,2]
[350926200,1738205446167,-501.23301585,0.00016438,2]
[350926201,1738205446177,-158.784739,0.00016438,2]
[350926202,1738205446186,-151.0,0.00016438,2]
[350926203,1738205446200,-151.0,0.00016438,2]
[350926204,1738205446209,-151.0,0.00016438,2]
[350926205,1738205446218,-1158.02,0.00016438,2]
[350926206,1738205446228,-151.0,0.00016438,2]
[350926207,1738205446238,-151.0,0.00016438,2]
[350926208,1738205446247,-152.638442,0.00016438,2]
[350926209,1738205446256,-155.708304,0.00016438,2]
[350926210,1738205446266,-509.06336114,0.00016438,2]
[350926211,1738205446275,-723.04,0.00016438,2]
[350926212,1738205446285,-570.79212767,0.00016438,2]
[350926213,1738205446294,-505.90889732,0.00016438,2]
[350926214,1738205446303,-586.36,0.00016438,2]
[350926215,1738205446312,-508.08022868,0.00016438,2]
[350926216,1738205446321,-512.98341799,0.00016438,2]
[350926217,1738205446330,-508.80767365,0.00016438,2]
[350926218,1738205446341,-505.83025089,0.00016438,2]
[350926219,1738205446351,-946.58,0.00016438,2]
[350926220,1738205446362,-508.62205404,0.00016438,2]
[350926221,1738205446372,-2357.19,0.00016438,2]
[350926222,1738205446381,-159.26747,0.00016438,2]
[350926223,1738205446390,-501.30622292,0.00016438,2]
[350926224,1738205446399,-508.24861524,0.00016438,2]
[350926225,1738205446411,-700.68,0.00016438,2]
[350926226,1738205446421,-500.0,0.00016438,2]
[350926227,1738205446431,-890.04,0.00016438,2]
[350926228,1738205446441,-151.0,0.00016438,2]
[350926229,1738205446451,-151.0,0.00016438,2]
[350926230,1738205446460,-151.0,0.00016438,2]
[350926231,1738205446470,-151.0,0.00016438,2]
[350926232,1738205446480,-151.0,0.00016438,2]
[350926233,1738205446490,-151.0,0.00016438,2]
[350926234,1738205446499,-151.0,0.00016438,2]
[350926235,1738205446509,-151.0,0.00016438,2]
[350926236,1738205446518,-257.553058,0.00016438,2]
[350926237,1738205446528,-503.4188815,0.00016438,2]
[350926238,1738205446537,-503.70496119,0.00016438,2]
[350926239,1738205446546,-151.0,0.00016438,2]
[350926240,1738205446554,-161.234401,0.00016438,2]
[350926241,1738205446563,-152.900445,0.00016438,2]
[350926242,1738205446573,-501.74525623,0.00016438,2]
[350926243,1738205446583,-503.42632327,0.00016438,2]
[350926244,1738205446593,-749.41,0.00016438,2]
[350926245,1738205446603,-505.21307681,0.00016438,2]
[350926246,1738205446615,-500.0,0.00016438,2]
[350926247,1738205446632,-507.05217585,0.00016438,2]
[350926248,1738205446642,-505.28281539,0.00016438,2]
[350926249,1738205446652,-502.61666393,0.00016438,2]
[350926250,1738205446665,-992.0,0.00016438,2]
[350926251,1738205446675,-151.0,0.00016438,2]
[350926252,1738205446685,-158.069091,0.00016438,2]
[350926253,1738205446694,-2096.6,0.00016438,2]
[350926254,1738205446703,-500.0,0.00016438,2]
[350926255,1738205446712,-2305.99,0.00016438,2]
[350926256,1738205446721,-500.0,0.00016438,2]
[350926257,1738205446730,-500.0,0.00016438,2]
[350926258,1738205446739,-593.79554424,0.00016438,2]
[350926259,1738205446748,-1107.71,0.00016438,2]
[350926260,1738205446758,-500.0,0.00016438,2]
[350926261,1738205446767,-1077.24,0.00016438,2]
[350926262,1738205446778,-506.62932946,0.00016438,2]
[350926263,1738205446788,-151.0,0.00016438,2]
[350926264,1738205446797,-158.806774,0.00016438,2]
[350926265,1738205446806,-504.97581693,0.00016438,2]
[350926266,1738205446816,-899.88,0.00016438,2]
[350926267,1738205446826,-507.18397838,0.00016438,2]
[350926268,1738205446835,-522.08279051,0.00016438,2]
[350926269,1738205446843,-636.03091585,0.00016438,2]
[350926270,1738205446853,-151.0,0.00016438,2]
[350926271,1738205446862,-151.0,0.00016438,2]
[350926272,1738205446871,-151.0,0.00016438,2]
[350926273,1738205446881,-151.0,0.00016438,2]
[350926274,1738205446891,-151.0,0.00016438,2]
[350926275,1738205446900,-151.0,0.00016438,2]
[350926276,1738205446909,-151.0,0.00016438,2]
[350926277,1738205446918,-151.0,0.00016438,2]
[350926278,1738205446927,-625.31434941,0.00016438,2]
[350926279,1738205446936,-511.10517199,0.00016438,2]
[350926280,1738205446945,-963.54253764,0.00016438,2]
[350926281,1738205446977,-318.88746236,0.00016438,2]
[350926282,1738205446986,-508.50558105,0.00016438,2]
[350926283,1738205446995,-500.0,0.00016438,2]
[350926284,1738205447004,-660.26,0.00016438,2]
[350926285,1738205447013,-151.0,0.00016438,2]
[350926286,1738205447023,-151.0,0.00016438,2]
[350926287,1738205447032,-157.735489,0.00016438,2]
[350926288,1738205447041,-500.0,0.00016438,2]
[350926289,1738205447050,-506.28908138,0.00016438,2]
[350926290,1738205447065,-7250.32,0.00016438,2]
[350926291,1738205447074,-163.367023,0.00016438,2]
[350926292,1738205447083,-507.03803585,0.00016438,2]
[350926293,1738205447092,-1045.37,0.00016438,2]
[350926294,1738205447101,-151.0,0.00016438,2]
[350926295,1738205447110,-158.218347,0.00016438,2]
[350926296,1738205447121,-1972.58,0.00016438,2]
[350926297,1738205447130,-509.23372067,0.00016438,2]
[350926298,1738205447139,-500.0,0.00016438,2]
[350926299,1738205447149,-508.36473078,0.00016438,2]
[350926300,1738205447158,-517.573794,0.00016438,2]
[350926301,1738205447170,-500.0,0.00016438,2]
[350926302,1738205447179,-290.55095428,0.00016438,2]
[350926303,1738205447188,-151.0,0.00016438,2]
[350926304,1738205447199,-151.0,0.00016438,2]
[350926305,1738205447208,-151.0,0.00016438,2]
[350926306,1738205447217,-151.0,0.00016438,2]
[350926307,1738205447227,-151.0,0.00016438,2]
[350926308,1738205447236,-151.0,0.00016438,2]
[350926309,1738205447246,-227.373414,0.00016438,2]
[350926310,1738205447255,-330.63365046,0.00016438,2]
[350926311,1738205447265,-526.63951303,0.00016438,2]
[350926312,1738205447274,-506.34967255,0.00016438,2]
[350926313,1738205447283,-508.46375284,0.00016438,2]
[350926314,1738205447292,-389.53794727,0.00016438,2]
[350926315,1738205447302,-3909.94,0.00016438,2]
[350926316,1738205447311,-500.0,0.00016438,2]
[350926317,1738205447321,-3294.17,0.00016438,2]
[350926318,1738205447331,-194.038291,0.00016438,2]
[350926319,1738205447340,-501.45585898,0.00016438,2]
[350926320,1738205447351,-500.0,0.00016438,2]
[350926321,1738205447360,-500.0,0.00016438,2]
[350926322,1738205447368,-151.0,0.00016438,2]
[350926323,1738205447379,-160.042095,0.00016438,2]
[350926324,1738205447390,-166.834381,0.00016438,2]
[350926325,1738205447402,-917.53,0.00016438,2]
[350926326,1738205447414,-504.97371401,0.00016438,2]
[350926327,1738205447424,-151.0,0.00016438,2]
[350926328,1738205447435,-151.0,0.00016438,2]
[350926329,1738205447445,-151.0,0.00016438,2]
[350926330,1738205447455,-156.52499,0.00016438,2]
[350926331,1738205447465,-505.89207454,0.00016438,2]
[350926332,1738205447474,-4448.19,0.00016438,2]
[350926333,1738205447483,-500.0,0.00016438,2]
[350926334,1738205447492,-513.09933811,0.00016438,2]
[350926335,1738205447503,-155.35239,0.00016438,2]
[350926336,1738205447512,-150.0,0.00016486,2]
[350926337,1738205447522,-2014.049,0.00016486,2]
[350926338,1738205447532,-2304.0,0.00016486,2]
[350926339,1738205447543,-250.0,0.00016486,2]
[350926340,1738205447554,-150.916,0.00016486,2]
[350926341,1738205447563,-248.991,0.00016486,2]
[350926342,1738205447573,-82084.90996896,0.0001657,2]
[350926357,1738205787542,165.442479,0.00013973,2]
[350926412,1738206632417,-159.48953205,0.00016278,2]
[350926413,1738206632427,-191.71173116,0.00016338,2]
[350926414,1738206632438,-159.318442,0.00016378,5]
[350926415,1738206632447,-395.13429479,0.000164,2]
[350926592,1738206638115,-528.78757581,0.000164,2]
[350926593,1738206638242,-3918.346181,0.000164,2]
[350926595,1738206638400,-563.6997264,0.000164,2]
[350926596,1738206638409,-300.0,0.00016423,2]
[350926597,1738206638419,-6003.03160791,0.00016424,2]
[350926598,1738206638429,-412.74508064,0.00016437,2]
[350926599,1738206638438,-160.462983,0.00016438,2]
[350926600,1738206638448,-500.0,0.00016438,2]
[350926601,1738206638457,-500.0,0.00016438,2]
[350926602,1738206638467,-227.84822879,0.00016438,2]
[350926603,1738206638476,-411.69260699,0.00016438,2]
[350926604,1738206638485,-385.21669434,0.00016438,2]
[350926605,1738206638499,-124.11919924,0.00016438,2]
[350926606,1738206638512,-500.0,0.00016438,2]
[350926607,1738206638522,-500.0,0.00016438,2]
[350926608,1738206638532,-500.0,0.00016438,2]
[350926609,1738206638543,-527.38734681,0.00016438,2]
[350926610,1738206638554,-500.0,0.00016438,2]
[350926611,1738206638564,-500.0,0.00016438,2]
[350926612,1738206638574,-500.0,0.00016438,2]
[350926613,1738206638584,-612.03,0.00016438,2]
[350926614,1738206638595,-151.0,0.00016438,2]
[350926615,1738206638604,-500.0,0.00016438,2]
[350926616,1738206638613,-500.0,0.00016438,2]
[350926617,1738206638622,-154.904731,0.00016438,2]
[350926618,1738206638632,-500.0,0.00016438,2]
[350926619,1738206638641,-500.0,0.00016438,2]
[350926620,1738206638651,-500.0,0.00016438,2]
[350926621,1738206638660,-561.96,0.00016438,2]
[350926622,1738206638670,-500.0,0.00016438,2]
[350926623,1738206638679,-500.0,0.00016438,2]
[350926624,1738206638689,-500.0,0.00016438,2]
[350926625,1738206638698,-500.0,0.00016438,2]
[350926626,1738206638708,-500.0,0.00016438,2]
[350926627,1738206638719,-500.0,0.00016438,2]
[350926628,1738206638728,-500.0,0.00016438,2]
[350926629,1738206638738,-500.0,0.00016438,2]
[350926630,1738206638747,-863.41,0.00016438,2]
[350926631,1738206638757,-63.22309474,0.00016438,2]
[350926632,1738206638770,-436.77690526,0.00016438,2]
[350926633,1738206638779,-500.0,0.00016438,2]
[350926634,1738206638788,-151.0,0.00016438,2]
[350926635,1738206638798,-509.25736672,0.00016438,2]
[350926636,1738206638807,-500.0,0.00016438,2]
[350926637,1738206638816,-157.736289,0.00016438,2]
[350926638,1738206638826,-1118.01,0.00016438,2]
[350926639,1738206638835,-500.0,0.00016438,2]
[350926640,1738206638845,-500.0,0.00016438,2]
[350926641,1738206638854,-438.55021893,0.00016438,2]
[350926642,1738206638863,-655.6,0.00016438,2]
[350926643,1738206638873,-500.0,0.00016438,2]
[350926644,1738206638882,-500.0,0.00016438,2]
[350926645,1738206638891,-500.0,0.00016438,2]
[350926646,1738206638901,-500.0,0.00016438,2]
[350926647,1738206638910,-500.0,0.00016438,2]
[350926648,1738206638920,-502.95199563,0.00016438,2]
[350926649,1738206638930,-550.0,0.00016438,2]
[350926650,1738206638940,-186.03853821,0.00016438,2]
[350926651,1738206638949,-500.0,0.00016438,2]
[350926652,1738206638958,-500.0,0.00016438,2]
[350926653,1738206638968,-500.0,0.00016438,2]
[350926654,1738206638977,-350.03060372,0.00016438,2]
[350926655,1738206638988,-2086.06,0.00016438,2]
[350926656,1738206638997,-6970.55,0.00016438,2]
[350926657,1738206639006,-1357.64,0.00016438,2]
[350926658,1738206639015,-500.0,0.00016438,2]
[350926659,1738206639025,-1813.69,0.00016438,2]
[350926660,1738206639034,-512.67228118,0.00016438,2]
[350926661,1738206639044,-797.5,0.00016438,2]
[350926662,1738206639054,-151.0,0.00016438,2]
[350926663,1738206639063,-500.0,0.00016438,2]
[350926664,1738206639073,-500.0,0.00016438,2]
[350926665,1738206639082,-500.0,0.00016438,2]
[350926666,1738206639092,-558.7,0.00016438,2]
[350926667,1738206639102,-513.32597637,0.00016438,2]
[350926668,1738206639111,-500.0,0.00016438,2]
[350926669,1738206639121,-530.65260412,0.00016438,2]
[350926670,1738206639131,-151.0,0.00016438,2]
[350926671,1738206639141,-1109.77,0.00016438,2]
[350926672,1738206639151,-16965.85354984,0.00016438,2]
[350926723,1738206643078,-2159.68645016,0.00016438,2]
[350926725,1738206643088,-61.54170348,0.00016438,2]
[350926729,1738206643131,-89.45829652,0.00016438,2]
[350926731,1738206643141,-506.21234705,0.00016438,2]
[350926732,1738206643151,-62.73260841,0.00016438,2]
[350926741,1738206646171,-88.26739159,0.00016438,2]
[350926742,1738206646181,-508.00037369,0.00016438,2]
[350926743,1738206646191,-509.06159686,0.00016438,2]
[350926744,1738206646200,-561.93,0.00016438,2]
[350926745,1738206646210,-519.0966617,0.00016438,2]
[350926746,1738206646219,-1159.15,0.00016438,2]
[350926747,1738206646229,-1495.05,0.00016438,2]
[350926748,1738206646238,-2267.42,0.00016438,2]
[350926749,1738206646248,-725.41,0.00016438,2]
[350926750,1738206646257,-956.46,0.00016438,2]
[350926751,1738206646266,-692.31,0.00016438,2]
[350926752,1738206646276,-359.88783527,0.00016438,2]
[350926753,1738206646285,-151.0,0.00016438,2]
[350926754,1738206646295,-500.0,0.00016438,2]
[350926755,1738206646304,-151.0,0.00016438,2]
[350926756,1738206646313,-1100.38,0.00016438,2]
[350926757,1738206646322,-718.19,0.00016438,2]
[350926758,1738206646332,-151.0,0.00016438,2]
[350926759,1738206646341,-2080.0,0.00016438,2]
[350926760,1738206646350,-151.0,0.00016438,2]
[350926761,1738206646360,-2255.59,0.00016438,2]
[350926762,1738206646369,-500.0,0.00016438,2]
[350926763,1738206646381,-1075.27,0.00016438,2]
[350926764,1738206646394,-500.0,0.00016438,2]
[350926765,1738206646407,-1078.41,0.00016438,2]
[350926766,1738206646416,-883.22,0.00016438,2]
[350926767,1738206646427,-568.03700156,0.00016438,2]
[350926768,1738206646438,-500.0,0.00016438,2]
[350926769,1738206646448,-166.931956,0.00016438,2]